[Event "Ostravsky Konik FIDE-A 2024"]
[Site "Ostrava"]
[Date "2024.05.04"]
[Round "8.2"]
[White "Decuigniere, Tom"]
[Black "Sernecki, Franciszek"]
[Result "1-0"]
[ECO "D24"]
[WhiteElo "2401"]
[BlackElo "2342"]
[Annotator "TA"]
[PlyCount "69"]
[EventDate "2024.04.26"]
[EventType "swiss"]
[EventCountry "CZE"]
[SourceTitle "playchess.com"]
[Source "ChessBase"]
[SourceQuality "1"]
[TimeControl "40/5400+30:1800+30"]

{[%evp 9,69,0,47,44,39,49,38,37,43,41,43,37,42,45,38,43,56,48,83,45,68,68,73,61,59,49,69,54,69,66,60,11,27,-30,162,161,202,187,164,172,165,157,279,288,408,414,407,400,542,535,799,794,769,775,810,807,779,774,810,830,803,785]} 1. d4 {[%emt 0:00:04]} Nf6 {[%emt 0:00:43]} 2. c4 {[%emt 0:00:09]} e6 {[%emt 0:00:10]} 3. Nf3 {[%emt 0:00:25]} d5 {[%emt 0:00:18]} 4. Nc3 {[%emt 0:00:16]} dxc4 {[%emt 0:00:28]} 5. e4 {[%emt 0:00:58][%cal Be2e4,Be4e5][%mdl 32]} b5 {[%emt 0:00:11]} 6. e5 $14 {[%emt 0:00:10]} Nd5 {[%emt 0:00:13]} 7. Nxb5 {[%emt 0:00:06]} Nb6 {[%emt 0:00:10]} 8. Be2 {[%emt 0:01:14] White is slightly better.} Nc6 {[%emt 0:00:19]} 9. O-O {[%emt 0:01:40]} Be7 {[%emt 0:00:17]} 10. Nc3 {[%emt 0:03:05]} O-O {[%emt 0:02:30]} 11. Qd2 {[%emt 0:02:07]} a5 {[%emt 0:07:48]} 12. Qf4 {[%emt 0:06:08]} Kh8 {[%emt 0:04:19]} 13. Rd1 {[%emt 0:03:28]} Qe8 {[%emt 0:12:32]} 14. Ne4 {[%emt 0:03:47]} f6 {[%emt 0:28:24]} 15. exf6 {[%emt 0:24:50]} gxf6 {[%emt 0:00:19]} 16. Ng3 {[%emt 0:08:23][%cal Of3h4] White has more active pieces.} Bd6 {[%emt 0:18:30]} 17. Qh6 $40 {[%emt 0:11:46][%mdl 128] White is up to no good.} Qg6 {[%emt 0:00:14]} 18. Nh4 {[%emt 0:00:16]} Qxh6 {[%emt 0:00:10]} 19. Bxh6 {[%emt 0:00:02]} Rg8 {[%emt 0:00:53]} 20. Rac1 {[%emt 0:03:55]} (20. Bf3 $14 {might be stronger.} Bd7 21. Nh5) 20... Nb4 $11 {[%emt 0:06:43]} 21. Nh5 {[%emt 0:05:29]} (21. a3 $142 N4d5 22. Re1) 21... N6d5 $2 {[%emt 0:01:13] A mistake that costs the game.} (21... Nxa2 $11 {and Black stays safe.} 22. Ra1 Nb4) 22. Bxc4 $18 {[%emt 0:01:32] [#] aiming for a3.} ({Not} 22. Rxc4 Ba6 $11) 22... Rg4 {[%emt 0:00:58]} 23. g3 {[%emt 0:00:24] Hoping for a3.} Ba6 {[%emt 0:01:10]} 24. a3 {[%emt 0:03:43]} Bxc4 {[%emt 0:00:15]} 25. Rxc4 {[%emt 0:00:01]} Na6 {[%emt 0:00:15]} (25... Nb6 $16) 26. Re1 {[%emt 0:00:21]} e5 {[%emt 0:04:35]} (26... Kg8 {was necessary.} 27. h3 (27. Rxe6 Kf7 $18) 27... Rxh4 28. gxh4 Kf7) 27. Nf5 {[%emt 0:01:18] [#] Black must now prevent dxe5.} Bf8 {[%emt 0:00:16]} 28. h3 {[%emt 0:00:39]} Rg8 {[%emt 0:01:06]} 29. dxe5 {[%emt 0:00:46] White is clearly winning.} Re8 {[%emt 0:00:49]} 30. Bxf8 {[%emt 0:01:39]} ({Weaker is} 30. Nxf6 Nxf6 31. Bd2 Nd5 $16) 30... Rgxf8 {[%emt 0:00:16]} 31. e6 {[%emt 0:00:05]} c5 {[%emt 0:00:18]} 32. Nhg7 {[%emt 0:00:23]} Ne7 {[%emt 0:00:09]} 33. Nxe8 {[%emt 0:00:53]} Nxf5 {[%emt 0:00:04]} 34. Rf4 {[%emt 0:00:08]} Rxe8 {[%emt 0:00:20]} 35. Rxf5 {[%emt 0:00:04] Weighted Error Value: White=0.09 (flawless) /Black=0.38.  Loses game:     	---       	Black=1      Mistake:       	White=2     	Black=2      Inaccurate:     	White=1     	Black=3      OK:         	White=11    	Black=8      Best:        	White=2     	Black=2} 1-0

[Event "Ostravsky Konik FIDE-A 2024"]
[Site "Ostrava"]
[Date "2024.05.04"]
[Round "8.4"]
[White "Romanishin, Oleg M"]
[Black "Chkhaidze, Nikoloz"]
[Result "0-1"]
[ECO "D45"]
[WhiteElo "2372"]
[BlackElo "2268"]
[Annotator "TA"]
[PlyCount "77"]
[EventDate "2024.04.26"]
[EventType "swiss"]
[EventCountry "CZE"]
[SourceTitle "playchess.com"]
[Source "ChessBase"]
[SourceQuality "1"]
[TimeControl "40/5400+30:1800+30"]

{[%evp 14,77,13,0,5,0,0,0,0,0,9,0,4,0,8,0,0,0,2,0,0,0,6,7,7,8,10,0,0,-104,-104,-121,-84,-109,-97,-120,-111,-111,-118,-110,-104,-116,-120,-129,-113,-121,-131,-129,-122,-128,-136,-137,-129,-168,-158,-160,-158,-163,-154,-156,-168,-170,-156,-176,-117,-107]} 1. d4 {[%emt 0:00:03]} d5 {[%emt 0:03:39]} 2. c4 {[%emt 0:00:04]} e6 {[%emt 0:00:04]} 3. Nf3 {[%emt 0:00:09]} Nf6 {[%emt 0:00:09]} 4. Nc3 {[%emt 0:00:06]} c6 {[%emt 0:00:03]} 5. e3 {[%emt 0:00:09]} Nbd7 {[%emt 0:00:04]} 6. Be2 {[%emt 0:00:11][%cal Bf1e2,Be2d3,Bd3e4][%mdl 32]} Bd6 {[%emt 0:00:06]} 7. O-O {[%emt 0:00:11]} O-O {[%emt 0:00:04]} 8. b3 {[%emt 0:00:06]} b6 {[%emt 0:00:05]} 9. Bb2 {[%emt 0:00:07]} Bb7 {[%emt 0:00:03]} 10. Bd3 {[%emt 0:00:07]} Qe7 {[%emt 0:00:04] The position is equal.} 11. Re1 {[%emt 0:00:42]} Rfe8 {[%emt 0:06:44]} 12. e4 {[%emt 0:00:23] And now e5 would win.} dxe4 {[%emt 0:00:53]} 13. Nxe4 {[%emt 0:00:07]} Nxe4 {[%emt 0:00:06]} 14. Bxe4 {[%emt 0:00:05]} Nf6 {[%emt 0:00:12]} 15. Bc2 {[%emt 0:00:16]} Ba3 {[%emt 0:08:10]} 16. Bc3 {[%emt 0:16:03]} Rad8 {[%emt 0:04:33]} 17. Qd3 {[%emt 0:11:16]} Bb4 {[%emt 0:04:01]} 18. Bxb4 {[%emt 0:08:19]} Qxb4 {[%emt 0:00:06]} 19. Ng5 {[%emt 0:02:10][%cal Rg5h7]} g6 {[%emt 0:16:38]} 20. Qf3 {[%emt 0:02:24]} (20. Qe3 {simplifies} Qe7 21. Rad1 Rd7 22. Nf3) 20... Kg7 {[%emt 0:02:52]} 21. Rad1 {[%emt 0:07:25] [#]} (21. Qe3 $11 {remains equal.}) 21... Rxd4 $3 $17 {[%emt 0:04:48][%mdl 512]} 22. Qe3 {[%emt 0:11:35]} (22. Ne4 Nxe4) 22... Red8 {[%emt 0:06:32]} 23. a3 {[%emt 0:08:46]} Qd6 {[%emt 0:02:54][%cal Rd4d1] Strongly threatening ...Rxd1!} (23... Qxa3 $2 {too greedy.} 24. Rxd4 Rxd4 25. Qxd4 $18) 24. Nf3 {[%emt 0:07:52]} Rxd1 {[%emt 0:05:28]} 25. Rxd1 {[%emt 0:00:06]} Qe7 {[%emt 0:02:18]} 26. Rxd8 {[%emt 0:03:08]} Qxd8 {[%emt 0:00:05]} 27. c5 {[%emt 0:00:07]} Nd5 {[%emt 0:06:59]} 28. Qe5+ {[%emt 0:06:25]} Qf6 {[%emt 0:01:06]} 29. b4 {[%emt 0:00:52]} bxc5 {[%emt 0:02:35]} 30. bxc5 {[%emt 0:00:21]} Qxe5 {[%emt 0:09:50]} 31. Nxe5 {[%emt 0:00:05][%mdl 4096] Endgame. KBN-KBN} Kf6 {[%emt 0:00:07]} 32. Nc4 {[%emt 0:00:38]} Ba6 {[%emt 0:01:13]} 33. Na5 {[%emt 0:07:51] [#]} Ne7 {[%emt 0:00:21]} 34. f4 {[%emt 0:02:02]} e5 {[%emt 0:02:24]} 35. g3 {[%emt 0:00:41]} exf4 {[%emt 0:05:09]} 36. gxf4 {[%emt 0:00:02]} Ke6 {[%emt 0:01:57]} 37. Be4 {[%emt 0:00:31]} Bb5 {[%emt 0:02:24]} 38. Kf2 {[%emt 0:00:38] [#]} Nd5 {[%emt 0:00:32]} ({Black should try} 38... f5 $1 $19 {[%cal Rf5e4]} 39. Bf3 Nd5) 39. Kf3 {[%emt 0:04:30] Weighted Error Value: White=0.13 (very precise) /Black=0.05 (flawless) .  Mistake:       	White=1     	Black=1      Inaccurate:     	White=1     	Black=1      OK:         	White=13    	Black=17     Best:        	---       	Black=1      Brilliant:      	---       	Black=1} 0-1

[Event "Ostravsky Konik FIDE-A 2024"]
[Site "Ostrava"]
[Date "2024.05.04"]
[Round "8.5"]
[White "Bujnoch, Radek"]
[Black "Backiel, Hubert"]
[Result "0-1"]
[ECO "E06"]
[WhiteElo "2307"]
[BlackElo "2129"]
[Annotator "TA"]
[PlyCount "62"]
[EventDate "2024.04.26"]
[EventType "swiss"]
[EventCountry "CZE"]
[SourceTitle "playchess.com"]
[Source "ChessBase"]
[SourceQuality "1"]
[TimeControl "40/5400+30:1800+30"]

{[%evp 12,62,12,0,0,0,0,0,0,-4,0,0,18,0,23,-53,-39,-80,-83,-77,-79,-85,-57,-93,-31,-65,-60,-122,-6,-8,0,-35,-40,-220,-189,-252,-243,-269,-270,-270,-272,-279,-279,-330,-295,-466,-451,-517,-529,-616,-483,-1170,-1159]} 1. Nf3 {[%emt 0:00:03]} Nf6 {[%emt 0:00:02]} 2. g3 {[%emt 0:00:29]} e6 {[%emt 0:00:04]} 3. Bg2 {[%emt 0:02:31]} Be7 {[%emt 0:00:07]} 4. c4 {[%emt 0:01:42]} d5 {[%emt 0:00:21]} 5. d4 {[%emt 0:00:15]} O-O {[%emt 0:00:04]} 6. Qc2 {[%emt 0:02:37]} c5 {[%emt 0:00:13]} 7. dxc5 {[%emt 0:00:27]} d4 {[%emt 0:00:10][%cal Ob8c6]} 8. O-O {[%emt 0:01:18]} Nc6 {[%emt 0:00:18][%cal Oe6e5]} 9. a3 {[%emt 0:00:36]} a5 {[%emt 0:00:16][%cal Of6d7] The position is equal.} 10. Rd1 {[%emt 0:08:45]} Bxc5 {[%emt 0:00:28]} 11. Nc3 {[%emt 0:24:32]} Qe7 {[%emt 0:16:22]} 12. Na4 {[%emt 0:01:19]} h6 {[%emt 0:00:24]} 13. h3 {[%emt 0:12:12]} (13. Nxc5 $11 Qxc5 14. b4 axb4 15. Qb3) 13... e5 $15 {[%emt 0:05:52]} 14. e4 {[%emt 0:04:14]} Be6 {[%emt 0:11:17]} 15. Ne1 {[%emt 0:01:12]} Nd7 {[%emt 0:00:41] Black is more active.} 16. Nd3 {[%emt 0:00:25]} f5 {[%emt 0:03:09]} 17. Re1 {[%emt 0:02:20]} Rac8 {[%emt 0:06:09]} (17... fxe4 $17 18. Naxc5 Nxc5 19. Nxc5 Qxc5 20. Qxe4 Rad8 (20... Qxc4 21. Bxh6 Rf7 22. Bg5 $11)) 18. Bd2 {[%emt 0:01:39]} fxe4 {[%emt 0:08:46]} 19. Bxe4 {[%emt 0:01:41]} ({White should play} 19. Naxc5 $15 exd3 (19... Nxc5 20. Nxc5 Qxc5 21. Qxe4 $15) 20. Nxd3) 19... Bxh3 {[%emt 0:01:53]} (19... Bd6 $17 {Threatens to win with ...Qf7.} 20. f4 Qf7 (20... Bxh3 21. Nf2 $17)) 20. Nf4 $11 {[%emt 0:14:49]} Rxf4 {[%emt 0:09:00]} (20... exf4 $6 21. Bd5+ Kh8 22. Rxe7 Nxe7 23. Bxf4 (23. Bxa5 $2 Nxd5 24. Qe4 fxg3 $19) 23... Nxd5 24. cxd5 $16) (20... d3 {is more complex.} 21. Qxd3 Bxf2+ 22. Kxf2 Qf6) 21. Bxf4 {[%emt 0:00:17]} (21. gxf4 $5 Rf8 (21... Qh4 22. Qd3 $11) 22. Qd3 $11) 21... Qf6 {[%emt 0:01:16]} 22. Nxc5 $2 {[%emt 0:05:09] This move loses the game for White.} ({White should try} 22. Qe2 $15) 22... Nxc5 $19 {[%emt 0:00:32]} 23. Bd5+ {[%emt 0:01:23] [#]} (23. Bd2 {was called for.}) 23... Kh8 $1 {[%emt 0:00:36]} 24. Bd2 {[%emt 0:02:08]} Rf8 {[%emt 0:06:19]} 25. f4 {[%emt 0:01:08]} Bf5 {[%emt 0:01:17]} 26. Qd1 {[%emt 0:00:49]} e4 {[%emt 0:01:44] Prevents Qf3. Hoping for ...Qg6.} 27. Qe2 {[%emt 0:06:09]} Re8 {[%emt 0:12:52] And now ...Qg6 would win.} 28. b4 {[%emt 0:00:22]} (28. g4 $142 Qg6 29. b4) 28... Nb3 {[%emt 0:04:05] Black is clearly winning.} 29. Rad1 {[%emt 0:00:28]} e3 {[%emt 0:01:23]} 30. Qg2 {[%emt 0:03:34]} Bc2 {[%emt 0:00:44]} 31. Rc1 {[%emt 0:00:12]} (31. Bxe3 $142 Bxd1 32. Bf2 Rxe1+ 33. Bxe1) 31... Be4 {[%emt 0:01:35] Weighted Error Value: White=0.68/Black=0.20 (precise) .  Loses game:     	White=1     	---        Mistake:       	White=5     	Black=2      Inaccurate:     	White=4     	Black=1      OK:         	White=7     	Black=11     Best:        	---       	Black=2      Strong:       	---       	Black=1} (31... exd2 $2 {too greedy.} 32. Rxe8+ Kh7 33. Rf1 $18 (33. Rxc2 $2 {loses.} d1=Q+ 34. Qf1 Qxc2 $19)) ({Weaker is} 31... Nxd2 32. Rxc2 Nb3 (32... axb4 33. Rxd2 bxa3 34. Bxc6 $14) (32... Qe7 33. Kh2 $11) 33. Rb2 $17) 0-1

[Event "Ostravsky Konik FIDE-A 2024"]
[Site "Ostrava"]
[Date "2024.05.04"]
[Round "8.6"]
[White "Pourquet, Matthieu"]
[Black "Zdybel, Przemyslaw"]
[Result "1-0"]
[ECO "A61"]
[WhiteElo "2214"]
[BlackElo "2264"]
[Annotator "TA"]
[PlyCount "67"]
[EventDate "2024.04.26"]
[EventType "swiss"]
[EventCountry "CZE"]
[SourceTitle "playchess.com"]
[Source "ChessBase"]
[SourceQuality "1"]
[TimeControl "40/5400+30:1800+30"]

{[%evp 11,67,56,55,31,56,41,44,37,53,45,177,154,249,78,124,80,118,82,134,138,144,146,141,133,145,148,176,163,192,169,176,176,165,158,349,312,235,172,168,171,156,156,156,156,165,151,426,423,593,570,571,267,282,270,505,424,2474,2264]} 1. d4 {[%emt 1:31:00]} Nf6 {[%emt 1:31:00]} 2. c4 e6 {[%emt 0:00:30]} 3. Nf3 {[%emt 0:01:00]} c5 {[%emt 0:00:30]} 4. d5 {[%emt 0:00:30]} exd5 {[%emt 0:00:30]} 5. cxd5 {[%emt 0:00:30]} d6 {[%emt 0:00:30]} 6. Nc3 {[%emt 0:00:30]} g6 {[%emt 0:00:30]} 7. h3 {[%emt 0:00:30]} Qe7 {[%emt 0:00:30]} 8. e4 {[%emt 0:00:30]} a6 9. Bd3 {White is slightly better.} b5 {[%cal Bb7b5,Bb5b4][%mdl 32]} 10. O-O {[%cal Oe4e5] And now e5! would win.} Nfd7 {[%emt 0:01:30]} (10... Bg7 $14) 11. a4 {[%emt 0:01:30]} b4 {[%emt 0:00:30] [#]} 12. Nb1 {[%emt 0:00:30]} (12. Bg5 f6 13. e5 bxc3 $15) (12. e5 $1 $18 {[%cal Re5d6] is the precise move to win.} bxc3 13. exd6 Qxd6 14. Re1+ (14. bxc3 Bg7 $11) 14... Be7 15. Qe2) 12... a5 {[%emt 0:00:30]} (12... Bg7 $142) 13. Bf4 {[%emt 0:00:30][%cal Oe4e5] Hoping for e5!} f6 {[%emt 0:00:30][%cal Bf7f6,Bf6e5][%mdl 32]} 14. Nbd2 {[%emt 0:00:30] Strongly threatening Bb5.} Ne5 {[%emt 0:00:30]} (14... Nb6 $142) 15. Nxe5 {[%emt 0:00:30]} fxe5 {[%emt 0:00:30]} 16. Be3 {[%emt 0:00:30]} Bg7 {[%emt 0:00:30]} 17. Bb5+ {[%emt 0:00:30]} Nd7 {[%emt 0:00:30]} 18. Qg4 {[%emt 0:00:30] aiming for Bg5.} Kd8 {[%emt 0:00:30]} 19. Qe2 {[%emt 0:00:30]} g5 {[%emt 0:00:30]} 20. Nc4 {[%emt 0:00:30]} h5 {[%emt 0:00:30]} 21. Rac1 {[%emt 0:00:30]} Bf8 {[%emt 0:00:30]} 22. f3 {[%emt 0:00:30]} Qf6 $2 {[%emt 0:00:30]} (22... Qg7 $16 23. h4 gxh4) 23. Bxd7 {[%emt 0:00:30]} Bxd7 {[%emt 0:00:30]} 24. Nb6 {[%emt 0:00:30]} Ra7 {[%emt 0:00:30][%cal Ba8a7,Ba7d7,Bd7c7][%mdl 32]} 25. Nxd7 {[%emt 0:00:30]} Rxd7 {[%emt 0:00:30]} 26. Qa6 {[%emt 0:00:30]} Ke7 {[%emt 0:00:30]} 27. Qxa5 {[%emt 0:00:30] White is much more active.} Bh6 {[%emt 0:00:30][%cal Og5g4]} 28. Qb5 {[%emt 0:00:30]} g4 $2 {[%emt 0:00:30] Black is weak on the light squares} (28... Ra8 $16 29. a5 Rc7) 29. Bxh6 $18 (29. fxg4 $2 {loses.} Bxe3+ 30. Kh1 Bf4 31. gxh5 Qg5 (31... Rxh5 $2 32. Rf3 $19) 32. Rxf4 exf4 $19 (32... Qxf4 $2 33. Rf1 $19)) 29... Qxh6 (29... gxh3 $142 30. Be3 Rg8) 30. fxg4 {[%cal Of1f7] [#] Threatens to win with Rf7+!} Rc7 {[%emt 0:01:00]} 31. Qe2 {[%emt 0:01:30] Wards off Qe3+} (31. gxh5 $142 Qd2 32. Rcd1 Qe3+ 33. Kh2 Qxe4 34. Rf3) 31... hxg4 {[%emt 0:00:30]} 32. Qxg4 {[%emt 0:00:30]} c4 $2 {[%emt 0:00:30]} (32... Kd8 33. Rc2 Rg7) 33. Rc2 {[%emt 0:00:30] Black must now prevent Rcf2.} Qe3+ {[%emt 0:00:30]} (33... Rcc8 $142 34. Rcf2 Rhf8) 34. Kh2 {[%emt 0:00:30] Weighted Error Value: White=0.39/Black=0.64.  Loses game:     	---       	Black=2      Missed win:     	White=1     	---        Mistake:       	White=1     	Black=6      Inaccurate:     	White=1     	Black=1      OK:         	White=10    	Black=6      Best:        	White=2     	Black=2} 1-0

[Event "Ostravsky Konik FIDE-A 2024"]
[Site "Ostrava"]
[Date "2024.05.04"]
[Round "8.7"]
[White "Goluch, Piotr"]
[Black "Warchol, Kamil"]
[Result "1-0"]
[ECO "A09"]
[WhiteElo "2325"]
[BlackElo "2149"]
[Annotator "TA"]
[PlyCount "91"]
[EventDate "2024.04.26"]
[EventType "swiss"]
[EventCountry "CZE"]
[SourceTitle "playchess.com"]
[Source "ChessBase"]
[SourceQuality "1"]
[TimeControl "40/5400+30:1800+30"]

{[%evp 9,91,0,0,0,163,20,60,72,70,39,74,83,66,72,74,83,126,111,141,141,136,137,147,78,76,77,78,74,76,19,34,39,126,123,98,95,110,117,129,52,269,138,176,210,207,122,195,197,199,178,191,173,184,182,210,199,208,201,234,206,295,231,272,245,254,158,274,254,253,225,230,233,272,266,368,382,410,371,338,260,483,439,736,713]} 1. Nf3 {[%emt 0:00:05]} d5 {[%emt 0:00:18]} 2. g3 {[%emt 0:00:05]} c5 {[%emt 0:00:19]} 3. c4 {[%emt 0:00:30]} d4 {[%emt 0:05:32]} 4. b4 {[%emt 0:00:05]} f6 {[%emt 0:05:51]} 5. e3 {[%emt 0:08:10]} e5 {[%emt 0:03:48]} 6. Bg2 {[%emt 0:21:08]} Bd6 $2 {[%emt 0:08:27] [#]} (6... cxb4 $11 {and Black stays safe.} 7. a3 Nc6) 7. exd4 {[%emt 0:10:23]} ({Better is} 7. bxc5 $18 Be7 8. O-O) 7... exd4 {[%emt 0:06:56]} 8. O-O {[%emt 0:01:26] White is slightly better.} Ne7 {[%emt 0:02:10][%cal Bg8e7,Be7c6,Bc6e5][%mdl 32]} 9. d3 {[%emt 0:00:25]} O-O {[%emt 0:05:46]} 10. bxc5 {[%emt 0:00:47]} Bxc5 {[%emt 0:00:55]} 11. Nbd2 {[%emt 0:00:08]} Nec6 {[%emt 0:15:29]} 12. Nb3 {[%emt 0:02:15]} Bb6 {[%emt 0:02:18]} 13. Nh4 {[%emt 0:04:34]} Ne5 {[%emt 0:12:20]} 14. f4 {[%emt 0:04:51]} Bg4 {[%emt 0:03:47]} 15. Qc2 {[%emt 0:02:01]} Nec6 {[%emt 0:00:38]} 16. Bd5+ {[%emt 0:02:46]} (16. Ba3 $142) 16... Kh8 $16 {[%emt 0:00:22]} 17. Ba3 {[%emt 0:00:04] Repels Nb4} Re8 {[%emt 0:01:06]} 18. Rfe1 {[%emt 0:00:12][%cal Oh2h3] aiming for h3!} Na6 {[%emt 0:02:02]} 19. Qg2 {[%emt 0:18:11]} (19. h3 $16 {Hoping for Ng6+.} Bd7 20. Qd2) 19... Qd7 $11 {[%emt 0:01:17]} 20. f5 {[%emt 0:02:53]} Bxf5 {[%emt 0:07:12]} (20... Nc7 $14) 21. Nxf5 {[%emt 0:00:05]} Qxf5 {[%emt 0:01:43]} 22. Bxc6 {[%emt 0:00:09]} bxc6 {[%emt 0:02:21]} 23. Qxc6 {[%emt 0:00:02]} Qc8 {[%emt 0:05:19]} 24. Qf3 {[%emt 0:08:52] White is much more active.} (24. Qxc8 $16 Rexc8 25. Re4) 24... Qc7 $2 {[%emt 0:02:07]} (24... Qd7 $14) 25. Re4 {[%emt 0:02:12]} ({Only move:} 25. Re7 $1 $18 Qc8 26. Rae1 Rxe7 27. Rxe7) 25... Rac8 {[%emt 0:01:56]} 26. Rae1 {[%emt 0:00:10]} (26. Nxd4 $2 Rxe4 27. Qxe4 Qd8 $19) 26... Rxe4 {[%emt 0:00:29]} 27. Rxe4 $40 {[%emt 0:00:13][%mdl 128] White wants a kill.} (27. Qxe4 $18 {[%cal Oe4e8] White wants to mate with Qe8+!} h6 28. Qf5 (28. Nxd4 $2 Rd8 $19)) 27... Nc5 {[%emt 0:00:53]} (27... Bc5 $16 {was called for.}) 28. Bxc5 $18 {[%emt 0:00:15]} (28. Rxd4 $2 Nxb3 29. axb3 Bxd4+ $19) 28... Bxc5 {[%emt 0:00:04] Black is weak on the light squares} 29. Qf5 {[%emt 0:01:42]} (29. Nxd4 $2 {is the wrong capture.} Rd8 30. h4 Bxd4+ $19 (30... Rxd4 31. Re8+)) 29... Bd6 {[%emt 0:02:43]} 30. Rh4 {[%emt 0:00:15]} h6 {[%emt 0:00:27][%cal Od6g3]} 31. Rxd4 {[%emt 0:03:21][%cal Bh4d4,Bd4e4,Be4e6][%mdl 32]} ({Worse is} 31. Nxd4 Bxg3 32. hxg3 Qxg3+ 33. Kf1 Rb8 $11) 31... Rd8 {[%emt 0:00:32]} 32. Kg2 {[%emt 0:01:10] c5 is the strong threat.} Re8 {[%emt 0:00:50]} 33. Re4 {[%emt 0:00:08]} Qb7 {[%emt 0:00:14]} 34. Qf3 {[%emt 0:03:04]} Rf8 {[%emt 0:00:37]} (34... Rxe4 {might work better.} 35. Qxe4 Qa6) 35. Re6 {[%emt 0:00:29]} Qb4 {[%emt 0:00:34]} 36. Qd5 {[%emt 0:00:35]} Rd8 {[%emt 0:00:36]} 37. Qc6 {[%emt 0:01:36]} Qa3 {[%emt 0:00:31]} (37... a5 $16 38. Re8+ Rxe8 39. Qxe8+ Kh7) 38. Re8+ {[%emt 0:00:09]} Rxe8 {[%emt 0:00:05]} 39. Qxe8+ {[%emt 0:00:03][%mdl 4096] Endgame. KQB-KQN} Kh7 {[%emt 0:00:05]} 40. Qe2 {[%emt 0:00:07]} a5 {[%emt 0:00:16]} 41. Nd4 {[%emt 0:31:53]} Be5 {[%emt 0:02:05]} 42. Nb5 {[%emt 0:00:00]} Qc5 {[%emt 0:01:53] [#]} 43. d4 $1 {[%emt 0:00:00][%cal Bd3d4,Bd4d5,Bd5d6][%mdl 544]} Qc6+ {[%emt 0:00:05]} 44. d5 {[%emt 0:00:00]} Qc5 {[%emt 0:00:04]} (44... Qb6 45. a4 Qc5 46. Qd3+ g6) 45. Qd3+ {[%emt 0:00:00]} Kh8 {[%emt 0:00:04]} (45... g6 $142 46. d6 f5) 46. d6 {[%emt 0:00:00] Weighted Error Value: White=0.28 (precise) /Black=0.50.  Loses game:     	---       	Black=2      Mistake:       	White=6     	Black=6      Inaccurate:     	White=2     	Black=4      OK:         	White=15    	Black=8      Best:        	White=3     	Black=5      Brilliant:      	White=1     	---} 1-0